[Event "58th Akiba Rubinstein GM 2022"]
[Site "Polanica-Zdroj"]
[Date "2022.08.14"]
[Round "1.1"]
[White "Kempinski, Robert"]
[Black "Donchenko, Alexander"]
[Result "1/2-1/2"]
[ECO "D12"]
[WhiteElo "2558"]
[BlackElo "2630"]
[Annotator "TA"]
[PlyCount "61"]
[EventDate "2022.08.13"]
[EventCountry "POL"]
[SourceTitle "playchess.com"]
[Source "ChessBase"]
[SourceQuality "1"]
[TimeControl "40/5400+30:1800+30"]

{[%evp 12,61,33,28,37,19,28,22,19,7,0,-4,26,16,34,25,44,31,27,21,27,20,33,14,31,31,24,33,29,7,25,33,47,0,8,0,4,0,20,40,17,17,60,39,35,35,35,10,22,8,9,8]} 1. d4 {[%emt 0:00:04]} d5 {[%emt 0:00:14]} 2. Nf3 {[%emt 0:00:36]} Nf6 {[%emt 0:00:15]} 3. c4 {[%emt 0:00:20]} c6 {[%emt 0:00:16]} 4. e3 {[%emt 0:00:53]} Bf5 {[%emt 0:00:25]} 5. Nc3 {[%emt 0:00:18]} e6 {[%emt 0:00:09]} 6. Nh4 {[%emt 0:00:29]} Be4 {[%emt 0:00:14]} 7. f3 {[%emt 0:00:47]} Bg6 {[%emt 0:00:07] D12: Slav Defence: 3 Nf3 Nf6 4 e3 Bf5.} 8. g3 {[%emt 0:01:07]} Be7 {[%emt 0:01:57]} 9. Nxg6 {[%emt 0:02:02] 9.Nxg6 has become a bit dusty these days.} hxg6 {[%emt 0:00:07]} 10. Bd2 {[%emt 0:00:38]} dxc4 {[%emt 0:07:38]} 11. Bxc4 {[%emt 0:01:22] [#]} a5 $146 {[%emt 0:01:41]} ({Predecessor:} 11... O-O 12. Qe2 a6 13. O-O-O c5 14. dxc5 Nbd7 15. c6 b5 16. cxd7 bxc4 17. Kb1 Qxd7 18. e4 Rac8 19. Bg5 Qc6 20. h4 Bb4 21. h5 Bxc3 {0-1 (21) Vinchev,S (2502)-Rogetzer,K (2517) ICCF email 2016}) 12. Be2 {[%emt 0:05:58]} b5 {[%emt 0:12:51]} 13. Qc2 {[%emt 0:05:19]} Qb6 {[%emt 0:07:56]} 14. Rc1 {[%emt 0:07:53]} Nbd7 {[%emt 0:07:23]} 15. O-O {[%emt 0:02:03]} O-O {[%emt 0:03:09]} 16. Rfd1 {[%emt 0:04:12]} Rac8 {[%emt 0:05:54]} 17. Be1 {[%emt 0:06:08]} e5 {[%emt 0:04:46]} 18. Bf2 {[%emt 0:05:09]} exd4 {[%emt 0:00:39]} 19. exd4 {[%emt 0:00:40]} Rfe8 {[%emt 0:03:56]} 20. f4 {[%emt 0:08:43]} Qb7 {[%emt 0:05:47]} 21. Bf3 {[%emt 0:02:15]} Nd5 {[%emt 0:00:34]} 22. Ne4 {[%emt 0:12:59]} (22. Bxd5 $5 cxd5 23. Qb3 $14) 22... N7f6 {[%emt 0:01:56]} 23. Re1 {[%emt 0:02:53]} Nb4 {[%emt 0:08:41]} 24. Nxf6+ {[%emt 0:04:28]} Bxf6 {[%emt 0:04:55]} 25. Rxe8+ {[%emt 0:01:04]} Rxe8 {[%emt 0:00:02]} 26. Qd2 {[%emt 0:01:17]} Qa8 {[%emt 0:05:52]} 27. a3 {[%emt 0:04:33]} Nd5 {[%emt 0:00:07]} 28. Qc2 {[%emt 0:00:51]} Ne7 $1 {[%emt 0:04:45]} ({Don't take} 28... Re6 29. Bxd5 cxd5 30. Qc8+ Re8 31. Qxa8 Rxa8 32. Rc5 $16) 29. Qc5 {[%emt 0:05:45]} Rd8 {[%emt 0:01:44]} 30. Rc2 {[%emt 0:03:10]} Qb8 {[%emt 0:01:12]} 31. Kg2 {[%emt 0:01:20] Weighted Error Value: White=0.10 (very precise) /Black=0.07 (flawless)} 1/2-1/2

[Event "58th Akiba Rubinstein GM 2022"]
[Site "Polanica-Zdroj"]
[Date "2022.08.14"]
[Round "1.2"]
[White "Tazbir, Marcin"]
[Black "Plat, Vojtech"]
[Result "0-1"]
[ECO "A10"]
[WhiteElo "2511"]
[BlackElo "2556"]
[Annotator "TA"]
[PlyCount "86"]
[EventDate "2022.08.13"]
[EventCountry "POL"]
[SourceTitle "playchess.com"]
[Source "ChessBase"]
[SourceQuality "1"]
[TimeControl "40/5400+30:1800+30"]

{[%evp 16,86,27,15,20,22,31,35,40,35,35,41,42,42,50,53,68,54,78,23,31,43,42,42,36,39,48,28,21,27,11,15,16,0,7,0,0,0,0,-12,0,0,23,5,8,0,0,0,8,2,36,0,0,0,507,364,356,354,347,-51,0,0,0,0,0,-20,-20,-325,-300,-289,-281,-618,-558]} 1. c4 {[%emt 0:00:04]} g6 {[%emt 0:00:10]} 2. g3 {[%emt 0:00:05]} Bg7 {[%emt 0:00:06]} 3. Bg2 {[%emt 0:00:04]} e5 {[%emt 0:00:05]} 4. Nc3 {[%emt 0:00:04]} Ne7 {[%emt 0:00:03]} 5. d3 {[%emt 0:00:21]} Nbc6 {[%emt 0:01:02]} 6. e3 {[%emt 0:00:11]} O-O {[%emt 0:00:20]} 7. Nge2 {[%emt 0:00:03]} d6 {[%emt 0:00:08]} 8. O-O {[%emt 0:00:13]} Be6 {[%emt 0:00:42]} 9. Nd5 {[%emt 0:00:10]} Rb8 {[%emt 0:04:55] A25: English Opening vs King's Indian with ...Nc6 but without early d3.} 10. Rb1 {[%emt 0:00:49]} a6 {[%emt 0:02:36]} 11. b3 {[%emt 0:05:37]} Qd7 {[%emt 0:04:15] White is slightly better.} 12. Bb2 {[%emt 0:02:12]} b5 {[%emt 0:04:52]} 13. Qd2 {[%emt 0:00:56]} f5 {[%emt 0:20:29]} 14. f4 {[%emt 0:02:50] [#]} Bf7 $146 {[%emt 0:04:49]} ({Predecessor:} 14... Bxd5 15. cxd5 Nd8 16. e4 Nf7 17. Rbc1 Rfc8 18. Rc2 c5 19. dxc6 Rxc6 20. Rfc1 Rbc8 {½-½ (36) Perman,T-Tiemann,H ICCF corr 1986}) 15. Rbc1 {[%emt 0:07:34]} Rfe8 {[%emt 0:10:00]} 16. e4 {[%emt 0:05:01]} bxc4 {[%emt 0:10:03]} 17. bxc4 {[%emt 0:04:45]} ({Don't play} 17. Rxc4 Nxd5 18. exd5 Ne7 $11) (17. dxc4 $16 Rbd8 18. Rcd1) 17... Nd4 {[%emt 0:03:55]} 18. fxe5 {[%emt 0:04:59]} Nxe2+ {[%emt 0:04:20]} 19. Qxe2 {[%emt 0:00:22] [#] aiming for Nf6+.} dxe5 {[%emt 0:00:03]} 20. Qf2 {[%emt 0:09:58]} c6 {[%emt 0:05:44]} 21. Nxe7+ {[%emt 0:01:44]} (21. Nb6 $5 {[%cal Rb6d7]} Qc7 22. c5 $11) 21... Rxe7 {[%emt 0:00:04]} 22. exf5 {[%emt 0:04:45]} gxf5 {[%emt 0:01:04]} 23. Ba3 {[%emt 0:00:25]} Re6 {[%emt 0:04:25]} 24. Qxf5 {[%emt 0:15:33] White wants to play Rb1.} Bg6 {[%emt 0:00:02]} 25. Qg4 {[%emt 0:10:52]} h5 {[%emt 0:02:53]} 26. Qg5 {[%emt 0:02:22] And now Bh3 would win.} Bxd3 {[%emt 0:03:01]} 27. Rfe1 {[%emt 0:02:56]} Qd4+ {[%emt 0:02:48]} 28. Kh1 {[%emt 0:00:55]} h4 {[%emt 0:00:41]} 29. Rcd1 {[%emt 0:04:09]} Qxc4 {[%emt 0:02:20]} 30. Qe3 {[%emt 0:02:13]} e4 {[%emt 0:01:59]} 31. gxh4 {[%emt 0:01:29]} (31. Rxd3 exd3 32. Qg1 Rxe1 33. Qxe1 d2 $19) 31... Qxa2 {[%emt 0:01:36]} 32. Bc1 {[%emt 0:00:22]} ({Wrong is} 32. Rxd3 $2 exd3 33. Be4 d2 $19) 32... Rbe8 {[%emt 0:01:45]} 33. Bh3 {[%emt 0:01:34][%mdl 1024] White has compensation.} R6e7 {[%emt 0:00:56]} 34. Rd2 {[%emt 0:00:39]} Qd5 {[%emt 0:00:20][%mdl 8192]} (34... Qb3 $1 $11 {and Black stays safe.}) 35. Rg1 {[%emt 0:00:31] Bb2 is the strong threat.} Kh8 {[%emt 0:01:09]} 36. Rdg2 {[%emt 0:01:30][%cal Og2g7] White wants to mate with Rxg7!} Bd4 {[%emt 0:00:13] [#]} 37. Qh6+ (37. Bb2 $1 $18 {[%cal Rb2d4]} Bxb2 38. Rxb2) 37... Rh7 $11 {[%emt 0:00:03]} 38. Qg6 $36 {[%emt 0:02:11][%mdl 2048] White has some pressure.} Qf7 {[%emt 0:01:34] Threatens to win with ...Qxg6.} 39. Qxc6 {[%emt 0:02:47]} Bf1 {[%emt 0:00:18][%cal Bd3f1,Bf1b5,Bb5c6][%mdl 32]} (39... Rxh4 $2 40. Bf5 Bb5 41. Qd6 $18) 40. Rf2 {[%emt 0:00:00]} Bb5 {[%emt 0:00:00] Chess con chili.} 41. Rxf7 $4 {[%emt 0:04:16][%mdl 8192]} (41. Be3 $11 Bxc6 42. Bxd4+ Qg7 43. Rxg7 Rxg7 44. Rg2) 41... Bxc6 $19 {[%emt 0:01:29]} 42. Rxh7+ {[%emt 0:00:05]} Kxh7 {[%emt 0:00:07]} 43. Re1 {[%emt 0:00:36]} (43. Bf5+ Kh8 44. Rg6) 43... Bf2 {[%emt 0:00:32] Weighted Error Value: White=0.48/Black=0.32} 0-1

[Event "58th Akiba Rubinstein GM 2022"]
[Site "Polanica-Zdroj"]
[Date "2022.08.14"]
[Round "1.3"]
[White "Teclaf, Pawel"]
[Black "Bernadskiy, Vitaliy"]
[Result "1/2-1/2"]
[ECO "B32"]
[WhiteElo "2550"]
[BlackElo "2598"]
[Annotator "TA"]
[PlyCount "65"]
[EventDate "2022.08.13"]
[EventCountry "POL"]
[SourceTitle "playchess.com"]
[Source "ChessBase"]
[SourceQuality "1"]
[TimeControl "40/5400+30:1800+30"]

{[%evp 15,65,30,29,25,36,18,25,10,33,21,32,0,0,0,0,0,0,0,0,-18,-9,-26,0,-5,0,0,0,0,0,0,0,0,0,0,0,0,0,0,0,0,0,0,0,0,0,0,0,0,0,0,0,0]} 1. e4 {[%emt 0:00:03]} c5 {[%emt 0:00:04]} 2. Nf3 {[%emt 0:00:06][%cal Bg1f3,Bf3d4,Bd4b5,Bb5a3,Ba3c2][%mdl 32]} Nc6 {[%emt 0:00:03]} 3. d4 {[%emt 0:00:05]} cxd4 {[%emt 0:00:03]} 4. Nxd4 {[%emt 0:00:03]} e5 {[%emt 0:00:14]} 5. Nb5 {[%emt 0:00:06]} d6 {[%emt 0:00:20]} 6. c4 {[%emt 0:04:37]} Be6 {[%emt 0:01:28]} 7. N1c3 {[%emt 0:04:16]} a6 {[%emt 0:00:30]} 8. Na3 {[%emt 0:00:06]} Rc8 {[%emt 0:00:26]} 9. Be3 {[%emt 0:08:04] B32: Sicilian: Löwenthal and Kalashnikov Variations.} g6 {[%emt 0:04:40]} 10. Be2 {[%emt 0:03:56]} Bg7 {[%emt 0:02:07]} 11. Nc2 {[%emt 0:04:08] White has an edge.} Nf6 {[%emt 0:01:14]} 12. O-O {[%emt 0:05:23]} O-O {[%emt 0:02:30]} 13. b3 {[%emt 0:07:06]} b5 {[%emt 0:12:02]} 14. cxb5 {[%emt 0:04:00]} axb5 {[%emt 0:05:35]} 15. Nxb5 {[%emt 0:06:56]} Nxe4 {[%emt 0:06:21]} 16. f3 {[%emt 0:03:22]} Nf6 {[%emt 0:01:56][%cal Be4f6,Bf6d5,Bd5f4][%mdl 32]} 17. Nxd6 {[%emt 0:02:26] [#]} Ra8 $146 {[%emt 0:01:31]} ({Predecessor:} 17... Rb8 18. Ne4 Nd5 19. Bc5 f5 20. Bxf8 Bxf8 21. Nf2 Bc5 22. Bc4 Nd4 23. Nxd4 Bxd4 {½-½ (64) Lagno,K (2550)-Pavlidou,E (2203) Warsaw 2021}) 18. Nb5 {[%emt 0:11:11]} Nd5 {[%emt 0:03:33]} 19. Bc5 {[%emt 0:01:50] [#] The position is equal.} Nf4 $1 {[%emt 0:09:38][%cal Od8g5]} 20. Bxf8 {[%emt 0:00:59]} Qxf8 {[%emt 0:10:37]} 21. Bc4 {[%emt 0:05:23] Hoping for Bxe6.} e4 {[%emt 0:08:56]} 22. Rb1 {[%emt 0:11:23] Bxe6 is the strong threat.} Qc5+ {[%emt 0:04:01]} 23. Kh1 {[%emt 0:00:05]} Bxc4 {[%emt 0:02:04]} ({Don't take} 23... Rxa2 24. fxe4 Bxc4 25. bxc4 Qxc4 26. Rxf4 $16) 24. bxc4 {[%emt 0:00:09]} e3 {[%emt 0:00:23] [#] White must now prevent ...e2.} 25. Re1 {[%emt 0:04:16]} ({Of course not} 25. Qd6 Qxd6 26. Nxd6 e2 $17) 25... e2 {[%emt 0:10:11]} 26. Qd2 {[%emt 0:01:04]} Be5 {[%emt 0:01:51] Strongly threatening ...Qf2.} 27. g3 {[%emt 0:03:04][%cal Bg2g3,Bg3f4][%mdl 32]} Qf2 $1 {[%emt 0:00:51][%csl Gf4][%cal Rf2g2]} 28. gxf4 {[%emt 0:00:06]} Qxf3+ {[%emt 0:00:03]} 29. Kg1 {[%emt 0:00:04]} Qg4+ {[%emt 0:00:15]} 30. Kh1 {[%emt 0:00:19]} Qf3+ {[%emt 0:00:04]} 31. Kg1 {[%emt 0:00:03][%cal Bh1g1,Bg1f2,Bf2e2][%mdl 32]} Qg4+ {[%emt 0:00:04]} 32. Kf2 {[%emt 0:00:35]} Qh4+ {[%emt 0:00:50]} 33. Kxe2 {[%emt 0:06:11] A balanced but interesting game.  Weighted Error Value: White=0.04 (flawless) /Black=0.03 (flawless)} 1/2-1/2

[Event "58th Akiba Rubinstein GM 2022"]
[Site "Polanica-Zdroj"]
[Date "2022.08.14"]
[Round "1.4"]
[White "Nasuta, Grzegorz"]
[Black "Sumets, Andrey"]
[Result "1-0"]
[ECO "C02"]
[WhiteElo "2500"]
[BlackElo "2547"]
[Annotator "TA"]
[PlyCount "87"]
[EventDate "2022.08.13"]
[EventCountry "POL"]
[SourceTitle "playchess.com"]
[Source "ChessBase"]
[SourceQuality "1"]
[TimeControl "40/5400+30:1800+30"]

{[%evp 14,87,13,28,36,42,44,32,43,10,40,25,37,27,28,0,52,35,63,41,45,45,25,20,20,27,48,51,61,60,51,34,149,110,120,0,0,0,0,0,118,112,122,118,126,130,124,122,120,118,122,113,121,121,143,130,181,183,233,165,184,135,148,150,145,145,404,125,467,452,886,793,973,972,1279,1200]} 1. e4 {[%emt 0:00:02]} e6 {[%emt 0:00:06]} 2. d4 {[%emt 0:00:05]} d5 {[%emt 0:00:05]} 3. e5 {[%emt 0:00:13]} c5 {[%emt 0:00:06]} 4. c3 {[%emt 0:00:06]} Nc6 {[%emt 0:00:04]} 5. Nf3 {[%emt 0:00:08]} Bd7 {[%emt 0:00:05]} 6. Be2 {[%emt 0:00:18]} Nge7 {[%emt 0:00:20]} 7. O-O {[%emt 0:00:14]} Ng6 {[%emt 0:00:15] 7...Ng6 is better than 7...Nf5.} 8. g3 {[%emt 0:00:21]} f6 {[%emt 0:01:08] C02: French: Advance Variation.} 9. exf6 {[%emt 0:01:05]} Qxf6 {[%emt 0:00:06]} 10. Be3 {[%emt 0:00:47]} (10. Bg5 $5 {[%cal Rg5f6]} Qf7 11. Be3 $11) 10... cxd4 {[%emt 0:00:35] White is slightly better.} 11. Nxd4 {[%emt 0:00:46]} Bd6 {[%emt 0:00:17]} 12. Nb5 {[%emt 0:00:44]} Bb8 {[%emt 0:00:09]} 13. Nd2 {[%emt 0:00:15]} a6 {[%emt 0:02:59]} 14. Nd4 {[%emt 0:06:07] [#]} O-O $146 {[%emt 0:04:14]} (14... e5 $11 15. N4b3 (15. Nxc6 bxc6 16. c4 Ne7 $11) 15... Bc8) ({Predecessor:} 14... e5 15. Nxc6 bxc6 16. Bc5 Ba7 17. Bxa7 Rxa7 18. Bg4 O-O 19. Bxd7 Rxd7 20. Qe2 Qg5 {0-1 (30) Nasuta,G (2511)-Piorun,K (2635) Kruszwica 2022}) 15. Qb3 {[%emt 0:00:40]} b5 {[%emt 0:06:41]} 16. f4 {[%emt 0:10:17]} Ba7 {[%emt 0:08:51][%cal Ra7d4]} 17. N2f3 {[%emt 0:03:23]} Na5 {[%emt 0:03:12]} 18. Qa3 {[%emt 0:15:16]} Nc4 {[%emt 0:03:04]} 19. Bxc4 {[%emt 0:00:10]} dxc4 {[%emt 0:00:10]} 20. Qd6 {[%emt 0:02:03] Against e5} Rfd8 {[%emt 0:13:44]} 21. Rae1 {[%emt 0:02:59]} Bb8 {[%emt 0:22:21]} 22. Qb6 {[%emt 0:34:55]} Rc8 {[%emt 0:18:27] Inhibits Nc6.} (22... e5 $14 23. Nc6 Re8 24. Nxb8 Raxb8 25. Qxf6 gxf6) 23. Ng5 {[%emt 0:08:25] Pair of Knights!} Nf8 {[%emt 0:03:41]} 24. f5 {[%emt 0:03:10] 0x0.0005ed50634ddp-1022s more active pieces. The black rooks are badly placed.} (24. Qb7 $16 Ba7 25. Rf2) 24... Ba7 $1 $11 {[%emt 0:02:04]} 25. Qd6 {[%emt 0:05:25][%cal Rf5e6]} Bc5 {[%emt 0:02:06]} 26. Qf4 {[%emt 0:00:02]} e5 {[%emt 0:04:17] [#]} (26... exf5 $1 $11 27. Nxf5 Bxf5 28. Qxf5 Qxf5 29. Rxf5 Bxe3+ 30. Rxe3 Re8) 27. Qf3 $1 $36 {[%emt 0:00:14][%mdl 2048] White is really pushing.} exd4 {[%emt 0:00:59]} (27... Bc6 28. Nxc6) 28. Qd5+ {[%emt 0:00:07]} Kh8 {[%emt 0:00:05]} 29. cxd4 {[%emt 0:00:50] And now Nf7+ would win.} ({Worse is} 29. Nf7+ Qxf7 $1 30. Qxf7 Be8 $17) 29... h6 {[%emt 0:00:13] [#]} 30. Ne4 $1 {[%emt 0:01:00][%cal Bg5e4,Be4c5,Bc5e6][%mdl 32]} ({Inferior is} 30. Nf7+ Kh7 31. Nxh6 (31. dxc5 Bc6 $17) 31... gxh6 $17) 30... Qc6 {[%emt 0:01:22]} 31. Qxc6 {[%emt 0:00:01][%mdl 64] Remove Defender} Bxc6 {[%emt 0:00:20]} 32. Nxc5 {[%emt 0:00:01] Black must now prevent f6.} Nh7 {[%emt 0:00:43]} 33. Bf4 {[%emt 0:02:02]} Re8 {[%emt 0:00:39]} 34. Ne6 {[%emt 0:01:23][%cal Od4d5] Hoping for d5!} Ra7 {[%emt 0:02:42]} (34... Nf6 $16 35. Be5 Ra7 36. Bxf6 gxf6) 35. Be5 $18 {[%emt 0:02:04]} Rae7 {[%emt 0:00:39]} (35... Rc8 $142 36. f6 gxf6) 36. h4 {[%emt 0:01:00][%cal Od4d5,Bh2h4,Bh4g5,Bg5f6,Bf6f7][%mdl 32]} Kg8 {[%emt 0:00:29]} 37. g4 {[%emt 0:00:51]} (37. Nc7 $18) 37... Nf6 $16 {[%emt 0:00:28]} 38. g5 {[%emt 0:00:59]} hxg5 {[%emt 0:00:05]} 39. hxg5 {[%emt 0:00:03]} Ng4 {[%emt 0:00:59][%mdl 8192]} (39... Ne4 $16) 40. Rf4 $2 {[%emt 0:00:00]} (40. Nxg7 $18 {and White stays clearly on top.} Rxg7 41. Bxg7 Rxe1 42. Rxe1 Kxg7 43. Re6) 40... Nxe5 $4 {[%emt 0:00:00][%mdl 8192]} (40... g6 $16 {is tougher.}) 41. Rxe5 $18 {[%emt 0:19:21] White is clearly winning.} (41. dxe5 Bd5 $18) 41... Rc8 {[%emt 0:21:28]} (41... g6 $142 42. f6 (42. d5 gxf5 43. a4 Bxd5 $11) 42... Rd7) 42. f6 {[%emt 0:02:10]} gxf6 {[%emt 0:00:59]} 43. gxf6 {[%emt 0:00:07]} Rd7 {[%emt 0:01:09]} 44. f7+ {[%emt 0:00:30] Weighted Error Value: White=0.24 (precise) /Black=0.42} 1-0

[Event "58th Akiba Rubinstein GM 2022"]
[Site "Polanica-Zdroj"]
[Date "2022.08.14"]
[Round "1.5"]
[White "Mastrovasilis, Dimitrios"]
[Black "Tomczak, Jacek"]
[Result "1-0"]
[ECO "B66"]
[WhiteElo "2597"]
[BlackElo "2596"]
[Annotator "TA"]
[PlyCount "67"]
[EventDate "2022.08.13"]
[EventCountry "POL"]
[SourceTitle "playchess.com"]
[Source "ChessBase"]
[SourceQuality "1"]
[TimeControl "40/5400+30:1800+30"]

{[%evp 13,67,22,48,20,17,13,37,29,33,38,50,17,16,12,80,81,93,87,92,80,94,72,76,83,101,104,116,47,47,54,56,69,81,47,47,47,115,100,97,62,86,49,100,107,174,133,193,198,225,187,276,276,949,942,794,745]} 1. e4 {[%emt 0:00:05]} c5 {[%emt 0:00:07]} 2. Nf3 {[%emt 0:00:11]} Nc6 {[%emt 0:00:08]} 3. d4 {[%emt 0:00:35]} cxd4 {[%emt 0:00:09]} 4. Nxd4 {[%emt 0:00:07]} Nf6 {[%emt 0:00:08]} 5. Nc3 {[%emt 0:00:09]} d6 {[%emt 0:00:22]} 6. Bg5 {[%emt 0:00:58]} e6 {[%emt 0:00:22]} 7. Qd2 {[%emt 0:01:20]} a6 {[%emt 0:00:23]} 8. Nxc6 {[%emt 0:00:57] B66: Sicilian: Richter-Rauzer: 7...a6 8 0-0-0 h6.} bxc6 {[%emt 0:00:08]} 9. O-O-O {[%emt 0:00:14][%cal Oe4e5]} Be7 {[%emt 0:00:40]} 10. Bxf6 {[%emt 0:04:53] White is slightly better.} gxf6 {[%emt 0:00:12]} 11. Bc4 {[%emt 0:00:24]} O-O {[%emt 0:00:23]} 12. h4 {[%emt 0:01:20]} Kh8 {[%emt 0:00:37]} 13. g4 {[%emt 0:00:39][%cal Bg2g4,Bg4g5,Bg5g6][%mdl 32] [#]} e5 $146 {[%emt 0:09:22]} (13... Rg8 $11) ({Predecessor:} 13... d5 14. Bb3 Bb7 15. Rhe1 Qc7 16. Kb1 Rad8 17. exd5 cxd5 18. f4 Qa5 19. Qd3 Rg8 {½-½ (30) Vocaturo,D (2615)-Greenfeld,A (2513) Budva 2019}) 14. Rdg1 $16 {[%emt 0:45:36]} Be6 {[%emt 0:02:45]} 15. Bxe6 {[%emt 0:03:54]} fxe6 {[%emt 0:02:33]} 16. g5 $1 {[%emt 0:00:13]} Rg8 {[%emt 0:03:17][%cal Rf6g5]} 17. g6 {[%emt 0:00:54]} Bf8 {[%emt 0:00:44]} (17... Rxg6 $2 18. Rxg6 Qf8 19. Rg2 $18) 18. h5 {[%emt 0:03:39] 0x0.0013bbc6378cdp-1022s more active pieces. The black rooks are badly placed.} Ra7 {[%emt 0:06:55]} 19. Kb1 {[%emt 0:05:12]} Qb6 {[%emt 0:09:43]} 20. f4 {[%emt 0:05:09]} ({White should try} 20. Qd3 $16) 20... Rb7 {[%emt 0:16:19][%csl Gb7][%cal Rb6b2]} 21. b3 {[%emt 0:01:09]} Qd4 {[%emt 0:14:07]} 22. Qxd4 {[%emt 0:05:37]} exd4 {[%emt 0:00:03]} 23. Ne2 $40 {[%emt 0:00:56][%mdl 128] White has some attack.} c5 {[%emt 0:00:38]} 24. f5 {[%emt 0:01:14] Black must now prevent h6.} exf5 {[%emt 0:05:10] [#]} (24... Bh6 $1 $14) 25. Ng3 $1 {[%emt 0:01:43]} Re7 {[%emt 0:03:22]} 26. Nxf5 {[%emt 0:04:07]} Rxe4 {[%emt 0:00:07]} 27. Rf1 {[%emt 0:03:02] Prevents Rf4.} d5 {[%emt 0:03:43] [#]} (27... Re2 $14) 28. Rhg1 $1 {[%emt 0:00:41][%mdl 1024] White has strong compensation.} Re5 {[%emt 0:01:57]} (28... Re2 $16 {was necessary.}) 29. Kc1 {[%emt 0:02:35]} c4 {[%emt 0:00:42]} (29... Re2 $16) 30. Kd1 {[%emt 0:01:33]} ({Worse is} 30. Nxd4 Rxh5 31. Ne6 Bh6+ 32. Kb2 f5 33. bxc4 dxc4 34. gxh7 Rg4 $15) (30. bxc4 dxc4 31. Rf4 Ra5 $11) 30... a5 {[%emt 0:01:03]} 31. Rg4 {[%emt 0:01:36]} (31. bxc4 dxc4 32. Rg4 d3 $11) 31... Re4 {[%emt 0:03:43]} (31... d3 $142) 32. Rfg1 $18 {[%emt 0:00:30] And now Rxe4 would win.} Re5 {[%emt 0:04:20]} (32... Rxg4 33. Rxg4 Bg7 34. bxc4 (34. Nxd4 Re8 $14) 34... dxc4 35. Rxd4 Bf8) 33. g7+ {[%emt 0:00:31]} Bxg7 {[%emt 0:00:04]} 34. h6 {[%emt 0:00:55] Weighted Error Value: White=0.10 (very precise) /Black=0.28 (precise)} ({Not} 34. Rxg7 Rxg7 35. Nxg7 h6 $18) 1-0